Cogmind - Beta 14 @@@ ROGUE MODE // 2025.04.27 @ 10:24:57 Player: DuckBoy Result: Destroyed by G-34 Mercenary with Small Laser Performance ------------- Evolutions (0) 0 Regions Visited (1) 200 Robots Destroyed (19) 95 Value Destroyed (258) 258 Prototype IDs (0) 0 Alien Tech Used (0) 0 Bonus (-38) -38 TOTAL SCORE: 515 Bonus ------- Friendly Fire -38 Cogmind --------- Core Integrity 0/250 Matter 249/300 Energy 87/250 System Corruption 0% Temperature Cool (6) Movement Rolling (100) Location -10/Materials Parts ------- > --- POWER (1) -------- Ion Engine > --- PROPULSION (2) --- Compact Wheel Compact Wheel > --- UTILITY (2) ------ Small Storage Unit > --- WEAPON (2) ------- (None) > --- INVENTORY (8) ---- Hacking Suite Peak State ------------ > --- POWER ------------ Light Ion Engine > --- PROPULSION ------- Light Treads Light Treads > --- UTILITY ---------- Heat Sink Small Storage Unit > --- WEAPON ----------- EM Pulse Gun EM Pulse Gun > --- INVENTORY -------- Ion Engine Compact Wheel Compact Wheel Hacking Suite Light Assault Rifle [Rating: 7] Favorites ----------- Power Light Ion Engine Engine Light Ion Engine Propulsion Light Treads Treads Light Treads Wheel Compact Wheel Utility Small Storage Unit Device Heat Sink Storage Small Storage Unit Weapon EM Pulse Gun Energy Gun EM Pulse Gun Ballistic Gun Light Assault Rifle Build | -11 -10 ------- Run | Yrd Mat Slots Evolved . | . . Power . | . . Propulsion . | . . Utility . | . . Weapon . | . . Parts Attached 19 | 6 13 Power 2 | 1 1 Engine 2 | 1 1 Core . | . . Reactor . | . . Propulsion 10 | 2 8 Treads 4 | . 4 Leg . | . . Wheel 6 | 2 4 Hover . | . . Flight . | . . Utility 2 | 1 1 Device 1 | . 1 Storage 1 | 1 . Processor . | . . Hackware . | . . Protection . | . . Artifact . | . . Weapon 5 | 2 3 Energy Gun 2 | 1 1 Energy Cannon . | . . Ballistic Gun 3 | 1 2 Ballistic Cannon . | . . Launcher . | . . Special Weapon . | . . Impact Weapon . | . . Slashing Weapon . | . . Piercing Weapon . | . . Special Melee Weapon . | . . Unidentified Prototypes . | . . Parts Lost 8 | . 8 Power 1 | . 1 Propulsion 2 | . 2 Utility 1 | . 1 Weapon 4 | . 4 Highest Loss Streak 7 | . 7 To Critical Strikes . | . . Average Slot Usage (%) 88 | . 88 Engine 13 | . 13 Treads 17 | . 17 Wheel 9 | . 9 Device 7 | . 7 Storage 14 | . 14 Energy Gun 17 | . 17 Ballistic Gun 9 | . 9 Peak Build Rating 7 | 6 7 Average Rating 6 | 4 6 On Entrance 3 | . 6 Naked Turns . | . . Heaviest Build 13 | 11 13 Greatest Support 40 | 32 40 Greatest Overweight (x) . | . . Average Overweight (x) . | . . Largest Inventory Capacity 8 | 8 8 Average Capacity 7 | 6 8 Most Carried 5 | 5 5 Average Carried 3 | 2 4 Final Capacity 8 | 8 8 Final Carried 4 | 4 1 Class Distribution -------------------- 100% | Mutant Dominant Class ---------------- Mutant | -10/Materials Resources | -11 -10 ----------- Run | Yrd Mat Matter Collected 340 | 261 79 Remotely . | . . Salvage Created 543 | 21 522 Parts 40 | 3 37 Haulers Intercepted 1 | . 1 Recyclers Shooed . | . . Parts Field Recycled . | . . Retrieved Matter . | . . Parts Self-Destructed . | . . Prevented . | . . Kills | -11 -10 ------- Run | Yrd Mat Combat Hostiles Destroyed 10 | . 10 Guns 8 | . 8 AOE 1 | . 1 Classes Destroyed 8 | 1 7 Builder 2 | . 2 Tunneler 1 | 1 . Hauler 1 | . 1 Recycler 2 | . 2 Operator 1 | . 1 Watcher 2 | . 2 Swarmer 7 | . 7 Grunt 3 | . 3 Best Kill Streak 8 | 1 8 Combat Bots Only 6 | . 6 Max Kills in Single Turn 2 | 1 2 Gunslinging 1 | . 1 Exploded 1 | . 1 Melee . | . . Uniques/NPCs Destroyed . | . . Combat | -11 -10 -------- Run | Yrd Mat Hostile Shots Fired 121 | . 121 Missed 24 | . 24 Damage Taken 970 | . 970 Core 258 | . 258 Absorbed by Shields . | . . Core Remaining (%) 100 | 100 . Volleys Fired 55 | 1 54 Largest 2 | 2 2 Hottest 80 | 60 80 Shots Fired 100 | 2 98 Gun 100 | 2 98 Cannon . | . . Launcher . | . . Special . | . . Kinetic 40 | 1 39 Thermal . | . . Explosive . | . . Electromagnetic 60 | 1 59 Robot Hit Streak 7 | 1 7 Robot Miss Streak 5 | . 5 Penetration Max . | . . Secondary Targets 1 | . 1 Max Gunslinging Chain 1 | . 1 Shots Hit Robots 58 | 1 57 Core Hits 26 | 1 25 Critical Kills . | . . Critical Parts Destroyed 1 | . 1 Critical Strikes 1 | . 1 Destroy 1 | . 1 Melee Attacks . | . . Impact . | . . Slashing . | . . Piercing . | . . Sneak Attacks . | . . Combat Hostiles . | . . Follow-up Attacks . | . . Damage Inflicted 972 | 13 959 Guns 776 | 13 763 Cannons . | . . Explosions 191 | . 191 Melee . | . . Ramming 5 | . 5 Kinetic 151 | . 151 Thermal 191 | . 191 Explosive . | . . Electromagnetic 625 | 13 612 Impact . | . . Slashing . | . . Piercing . | . . Highest Corruption . | . . Average Corruption . | . . Corruption Purged . | . . Corruption Blocked . | . . Overload Shots . | . . Overflow Damage 17 | . 17 Projectiles . | . . Explosions 17 | . 17 Melee . | . . Knockbacks . | . . Impact . | . . Kinetic . | . . Secondary . | . . Self-Inflicted Damage 90 | . 90 Shots 3 | . 3 Rammed 3 | . 3 Targets Rammed 3 | . 3 Kicked . | . . Crushed . | . . Highest Temperature 300 | 20 300 Average Temperature 112 | 15 115 Received Heat Transfer 204 | . 204 Siege Activations . | . . Robots Corrupted 1 | . 1 Combat Hostiles 1 | . 1 Parts Fried 1 | . 1 Impact Corruptions . | . . Robots Melted . | . . Combat Hostiles . | . . Parts Melted 2 | . 2 Heat Transferred 450 | . 450 Parts Sabotaged . | . . Parts Stolen . | . . Parts Stripped . | . . Power Chain Reactions 3 | . 3 Alert | -11 -10 ------- Run | Yrd Mat Peak Influence 290 | 5 290 Initial 3 | . 3 Average 110 | 1 122 Maximum Alert Level 1 | . 1 Low Security (%) 76 | 100 74 Level 1 23 | . 25 Level 2 . | . . Level 3 . | . . Level 4 . | . . Level 5 . | . . High Security . | . . Max Security . | . . Squads Dispatched 1 | . 1 Investigation . | . . Extermination . | . . Reinforcement 1 | . 1 Assault . | . . Garrison . | . . Intercept . | . . Searches Triggered . | . . Construction Impeded . | . . Haulers Reinforced . | . . Active Scanning Responses . | . . Cargo Convoy Interrupts . | . . Stealth | -11 -10 --------- Run | Yrd Mat Distress Signals 1 | . 1 Communications Jammed . | . . Distress Signals . | . . Times Spotted 20 | . 20 Peak Tracking Total 6 | . 6 Tactical Retreats . | . . Traps | -11 -10 ------- Run | Yrd Mat Traps Triggered . | . . Indirectly . | . . Trap Hack Attempts . | . . Triggered . | . . Disarmed . | . . Reprogrammed . | . . Reused . | . . Traps Extracted . | . . Installed . | . . Triggered . | . . Machines | -11 -10 ---------- Run | Yrd Mat Machines Disabled 1 | . 1 Max in Single Turn 1 | . 1 Machines Repaired . | . . Machines Dismantled . | . . Machines Sabotaged . | . . Overloaded Fab Kills . | . . Hacking | -11 -10 --------- Run | Yrd Mat Machines Accessed 5 | . 5 Terminals 4 | . 4 Fabricators . | . . Repair Stations . | . . Recycling Units 1 | . 1 Scanalyzers . | . . Garrison Access . | . . Total Hacks 18 | . 18 Successful 6 | . 6 Failed 12 | . 12 Catastrophic 1 | . 1 Database Lockouts . | . . Manual 15 | . 15 Terminals 15 | . 15 Fabricators . | . . Repair Stations . | . . Recycling Units 3 | . 3 Scanalyzers . | . . Garrison Access . | . . Terminal Hacks . | . . Fabricator Hacks . | . . Repair Station Hacks . | . . Recycling Unit Hacks 1 | . 1 Retrieve Components 1 | . 1 Scanalyzer . | . . Garrison Access Hacks . | . . Unauthorized Hacks 5 | . 5 Terminals 5 | . 5 Assimilate 1 | . 1 Botnet 3 | . 3 Operators 1 | . 1 Fabricators . | . . Repair Stations . | . . Recycling Units . | . . Scanalyzers . | . . Garrison Access . | . . Data Cores Recovered . | . . Used . | . . Hacking Detections 5 | . 5 Full Trace Events . | . . Feedback Events . | . . Feedback Blocked . | . . Robot Schematics Acquired . | . . Robots Built . | . . Authchips . | . . Time . | . . Total Robot Build Rating . | . . Part Schematics Acquired . | . . Parts Built . | . . Authchips . | . . Time . | . . Total Part Build Rating . | . . Parts Repaired . | . . Time . | . . Parts Recycled . | . . Recycled Matter . | . . Retrieved Matter . | . . Retrieved Components 9 | . 9 Parts Scanalyzed . | . . Part Schematics Acquired . | . . Parts Damaged . | . . Bothacking | -11 -10 ------------ Run | Yrd Mat Used RIF Installer . | . . Robots Hacked . | . . Non-combat . | . . Combat . | . . Robot Hacks Applied . | . . Relay Couplers Released . | . . Fabnet Peak Effective % . | . . Robots Rewired . | . . Allies Hacked . | . . Hacks Repelled . | . . Allies | -11 -10 -------- Run | Yrd Mat Total Allies 1 | . 1 Largest Group 1 | . 1 Highest-Rated Group 10 | . 10 Highest-Rated Ally 10 | . 10 Total Orders . | . . Ally Attacks . | . . Total Damage . | . . Kills . | . . Allies Corrupted . | . . Allies Melted . | . . Intel | -11 -10 ------- Run | Yrd Mat Robot Analysis Total . | . . Derelict Logs Recovered . | . . Drone Launches . | . . Drone Recoveries . | . . Exploration | -11 -10 ------------- Run | Yrd Mat Turns Passed 637 | 59 578 Spaces Moved 339 | 45 294 Core 4 | 4 . Treads 139 | . 139 Legs . | . . Wheels 196 | 41 155 Hover . | . . Flight . | . . Fastest Speed 50 | 50 100 Average Speed 124 | 95 128 Slowest Speed 160 | 100 160 Overloaded Moves . | . . Propulsion Burnouts . | . . Robots Hopped . | . . Cave-ins Triggered . | . . Exploration Rate (%) 33 | 3 63 Regions Visited 1 Branch Regions . Pre-discovered Areas . | . . Known Exits Taken . | . . Unknown Exits Taken 1 | 1 . Scrap Searched . | . . Spaces Dug . | . . Terrain Destroyed 6 | . 6 Melee . | . . Projectile . | . . AOE 6 | . 6 Terrain Rammed . | . . Walls Destroyed . | . . Machines Disabled . | . . Actions | -11 -10 --------- Run | Yrd Mat Total 455 | 57 398 Wait 33 | . 33 Move 338 | 44 294 Hop . | . . Pick Up 7 | 6 1 Fast Attach 6 | 4 2 Attach 6 | 2 4 Detach . | . . Swap 7 | . 7 Drop . | . . Fire 55 | 1 54 Melee . | . . Ram . | . . Kick . | . . Crush 3 | . 3 Escape Stasis . | . . Rewire . | . . Trap . | . . Miscellaneous . | . . Route ------- -11/Scrapyard -10/Materials (discovered 3 exits: [*Mat x2] / [*Min]) History --------- Turn | Location | Event 2 | -11/Scrapyard | Met Revision 17 13 | -11/Scrapyard | Discovered new exit (range 14) 60 | -11/Scrapyard | Entered Materials 186 | -10/Materials | Discovered new exit (range 7) 308 | -10/Materials | Build established: Mutant 322 | -10/Materials | Discovered new exit (range 16) 593 | -10/Materials | Core integrity fell below 50% 604 | -10/Materials | Discovered new exit (range 16) 627 | -10/Materials | Core integrity fell below 20% 638 | -10/Materials | Destroyed by G-34 Mercenary with Small Laser Last Messages --------------- 00525_ Acquired 10 matter. 00534_ Acquired 1 matter. 00558_ O-16 Technician: "IFF HANDSHAKE FAILED. SECURING TERMINAL." 00558_ Connecting with Terminal... 00565_ ALERT: Hostiles spotted, dispatching reinforcements to Terminal M006. 00580_ EM Pulse Gun destroyed. 00589_ S-10 Pest suffers critical hit (Destroy). 00589_ Destroyed Flight Unit. 00590_ S-10 Pest destroyed. 00595_ Lgt. Treads destroyed. 00599_ Lgt. Ion Engine destroyed. 00603_ Slammed into S-10 Pest. 00604_ EXIT=FOUND 00607_ Acquired Lgt. Assault Rifle. 00608_ Lgt. Treads destroyed. 00625_ K-01 Serf collects debris. 00628_ Lgt. Assault Rifle destroyed. 00632_ Heat Sink destroyed. 00635_ Lgt. Assault Rifle destroyed. Map ----- +----------------------------------------------------+ | ??????????????????????????????????? | | ??????????????????????????????????? | | ??????????????????????????????????? | | ??????????????????????????????????? | | ??????????????????????????????????? | | ??????????????????????????????????? | | ??????????????????????????????????? | | ??????????????????????????????????? | | ??????????????????????????????????? | | ??????????????????????????????????? | | ?????????????????????? ??o??????? | | ?????????????????????# < ?????????? | | ???+?????????????????# #????????? | | ?? #?????????????????+ +????????? | | " #?????????????????# #????????? | | " #???????? ??????# #????????? | | " #???????# ??????# #????????? | | #???????# ??????# #????????? | | #???????# ??????# #????????? | | #???????# ??????# #????????? | | " #???????+ ??????# #????????? | | " #???????# ??????# T????????? | | #???????# #?????# #????????? | | #???????# #????## ######???? | | ## #???????# #????# [[#???? | | "#?#???????# #????# %s @ [[#???? | | "# #???????# #????# Tgs !!#???? | | |# #???????# #????# g !!#???? | | "# #???????# #????# ==#???? | | |# #???????# #????## #### ==#???? | | "# #??????## ##????# #???####???? | | "# #??????# ###### #??????????? | | ## #??????# #??????????? | | #??????# T #??????????? | | ##+#???# #??????????? | | #???# #####+##??????????? | | #???## ##??? ???????????? | | #+###+####?# #???? ""???????????? | | #?# % #??? """??????????? | | """!= #?# #??? """??????????? | | ="Y"! #?# %#?? ?????????? | | !!=== #?# #?? """ ?????????? | | #/########## #? ""???????????? | | ###???## #? ?????????????? | | ""#???## ##! ?????????????? | | T"#???## ######?????????????? | | "#???## #??????????????????? | | % =###????# #??????????????????? | | = ##?????# #??????????????????? | | %######## ######?????????????? | +----------------------------------------------------+ Best States ------------- Heat Dissipation 35 Energy Generation 10 Energy Capacity 125 Matter Stores 300 Matter Capacity 300 Sight Range 16 Terrain Scan Density 10 Evasion (%) 40 Recoil Reduction 2 Item Schematics ----------------- None Robot Schematics ------------------ None Fabricated ------------ Nothing Alien Tech Used ----------------- None Achievements -------------- None Challenges ------------ None Game ------ Seed MicroDecoderMinigun Manual? 0 Play Time 00:09:34 Cumulative 448.1 hours Start 2025.04.27 @ 10:12:33 End 2025.04.27 @ 10:24:57 Sessions 1 Manual Loads 0 Difficulty Rogue Special Mode None Game No. 284 Rogue 281 Adventurer 3 Explorer 0 Win Type - Total 8 Types 7/0/1/0/0/0/0/0/0 Lore% 48 Gallery% 73 Achievement% 67 Wizard Run 0 Options --------- Layout 0 ASCII 0 Keyboard 0 Movement Numpad Keybinds 0 Fullscreen 1 Font 18/SmallcapsGlow Map View 76x50 Zoom Use 0% Tactical HUD 1 Map Filters NONE Filters NONE Steam 1 RUN: 0a6e15bb-d3b0-46ea-96ad-74bdf0da6e57